[Event "12th Asrian Memorial 2019"]
[Site "Yerevan"]
[Date "2019.06.11"]
[Round "1.13"]
[White "Gholami Orimi, Mahdi"]
[Black "Ghazaryan, Raffi"]
[Result "1-0"]
[ECO "A58"]
[WhiteElo "2445"]
[BlackElo "1831"]
[Annotator "NA"]
[PlyCount "71"]
[EventDate "2019.06.11"]
[EventType "swiss"]
[EventCountry "ARM"]
[SourceTitle "playchess.com"]
[Source "ChessBase"]
[SourceQuality "1"]
[TimeControl "40/5400+30:1800+30"]

1. d4 {[%emt 0:00:00]} Nf6 {[%emt 0:00:00]} 2. c4 {[%emt 0:00:00]} c5 {[%emt 0:00:00]} 3. d5 {[%emt 0:00:00]} b5 {[%emt 0:00:35]} 4. cxb5 {[%emt 0:00:10]} a6 {[%emt 0:00:04]} 5. bxa6 {[%emt 0:00:12]} g6 {[%emt 0:00:22]} 6. Nc3 {[%emt 0:00:09]} Bg7 {[%emt 0:00:25]} 7. g3 {[%emt 0:00:06]} d6 {[%emt 0:01:15]} 8. Bg2 {[%emt 0:00:05]} Nxa6 {[%emt 0:00:12]} 9. Nf3 {[%emt 0:00:33]} O-O {[%emt 0:00:15]} 10. O-O {[%emt 0:00:07]} Bf5 {[%emt 0:00:21]} 11. Nh4 {[%emt 0:21:04]} Bd7 {[%emt 0:00:10]} 12. h3 {[%emt 0:02:19]} Qb6 {[%emt 0:01:52]} 13. Rb1 {[%emt 0:04:12]} Rfb8 {[%emt 0:02:31]} 14. Bd2 {[%emt 0:13:11]} Nc7 {[%emt 0:01:53]} 15. e4 {[%emt 0:10:17]} Qa6 {[%emt 0:04:45]} 16. Kh2 {[%emt 0:03:12]} h6 {[%emt 0:19:36]} 17. f4 {[%emt 0:01:34]} Qd3 {[%emt 0:04:03]} 18. Rf3 {[%emt 0:02:09]} Qd4 {[%emt 0:00:52]} 19. Qe1 {[%emt 0:02:21]} Nb5 {[%emt 0:03:51]} 20. Re3 {[%emt 0:00:58]} Nxc3 {[%emt 0:08:03]} 21. Bxc3 {[%emt 0:00:11]} Qa4 {[%emt 0:01:06]} 22. e5 {[%emt 0:00:50]} Nh5 {[%emt 0:02:20]} 23. e6 {[%emt 0:08:14]} Be8 {[%emt 0:04:13]} 24. exf7+ {[%emt 0:02:01]} Bxf7 {[%emt 0:00:17]} 25. Rxe7 {[%emt 0:01:27]} Bxc3 {[%emt 0:01:55]} 26. bxc3 {[%emt 0:03:34]} Rxb1 {[%emt 0:10:00]} 27. Qxb1 {[%emt 0:00:16]} Qxa2 {[%emt 0:00:30]} 28. Qd3 {[%emt 0:00:58]} c4 {[%emt 0:05:52]} 29. Qf3 {[%emt 0:03:56]} Nf6 {[%emt 0:09:49]} 30. g4 {[%emt 0:08:06]} Qd2 {[%emt 0:03:11]} 31. Re2 {[%emt 0:03:50]} Qc1 {[%emt 0:00:51]} 32. f5 {[%emt 0:01:55]} g5 {[%emt 0:04:43]} 33. Ng6 {[%emt 0:00:04]} Ra1 {[%emt 0:01:10]} 34. Qf2 {[%emt 0:01:50]} Nxd5 {[%emt 0:07:45]} 35. Qd4 {[%emt 0:01:57]} Qxc3 {[%emt 0:00:42]} 36. Re8+ {[%emt 0:00:12]} 1-0

[Event "12th Asrian Memorial 2019"]
[Site "Yerevan"]
[Date "2019.06.12"]
[Round "2.2"]
[White "Onischuk, Vladimir"]
[Black "Sargsyan, Anna M."]
[Result "1-0"]
[ECO "A06"]
[WhiteElo "2630"]
[BlackElo "2290"]
[Annotator "RC"]
[PlyCount "67"]
[EventDate "2019.06.11"]
[EventType "swiss"]
[EventCountry "ARM"]
[SourceTitle "playchess.com"]
[Source "ChessBase"]
[SourceQuality "1"]
[TimeControl "40/5400+30:1800+30"]

1. Nf3 {[%emt 0:00:00]} d5 {[%emt 0:00:00]} 2. g3 {[%emt 0:00:00]} Bg4 {[%emt 0:00:00]} 3. Bg2 {[%emt 0:00:00]} Nd7 {[%emt 0:00:00]} 4. d3 {[%emt 0:00:55]} c6 {[%emt 0:00:57]} 5. O-O {[%emt 0:03:04]} e5 {[%emt 0:01:21]} 6. h3 {[%emt 0:01:38]} Bh5 {[%emt 0:01:24]} 7. e4 {[%emt 0:04:03]} Bd6 {[%emt 0:01:28]} 8. exd5 {[%emt 0:09:21]} cxd5 {[%emt 0:00:25]} 9. Nc3 {[%emt 0:00:12]} Ne7 {[%emt 0:05:10]} 10. g4 {[%emt 0:02:50]} Bg6 {[%emt 0:00:11]} 11. Nh4 {[%emt 0:00:47]} Nb6 {[%emt 0:00:42]} 12. a4 {[%emt 0:02:26]} d4 {[%emt 0:09:03]} 13. Nb5 {[%emt 0:04:53]} Nbd5 {[%emt 0:01:42]} 14. c4 {[%emt 0:09:11]} dxc3 {[%emt 0:07:41]} 15. bxc3 {[%emt 0:03:00]} O-O {[%emt 0:08:53]} 16. Nxg6 {[%emt 0:08:50]} hxg6 {[%emt 0:05:18]} 17. d4 {[%emt 0:01:14]} Bb8 {[%emt 0:13:56]} 18. dxe5 {[%emt 0:04:23]} Bxe5 {[%emt 0:07:07]} 19. Re1 {[%emt 0:00:51]} f6 {[%emt 0:11:16]} 20. Ba3 {[%emt 0:08:14]} a6 {[%emt 0:06:30]} 21. Nd4 {[%emt 0:00:44]} Rf7 {[%emt 0:07:29]} 22. Bxe7 {[%emt 0:17:04]} Nxe7 {[%emt 0:05:34]} 23. Bxb7 {[%emt 0:00:07]} Rb8 {[%emt 0:00:42]} 24. Bxa6 {[%emt 0:00:56]} Qc7 {[%emt 0:01:20]} 25. Qd3 {[%emt 0:04:12]} Kh7 {[%emt 0:03:25]} 26. Bc4 {[%emt 0:01:18]} Rff8 {[%emt 0:00:01]} 27. Ne6 {[%emt 0:00:19]} Qa5 {[%emt 0:00:14]} 28. Nxf8+ {[%emt 0:02:41]} Rxf8 {[%emt 0:00:02]} 29. Rad1 {[%emt 0:06:20]} Rc8 {[%emt 0:01:26]} 30. Re4 {[%emt 0:00:19]} Nc6 {[%emt 0:00:24]} 31. Qf3 {[%emt 0:01:28]} Bxc3 {[%emt 0:00:31]} 32. Rd5 {[%emt 0:00:40]} Qb4 {[%emt 0:00:24]} 33. g5 {[%emt 0:00:39]} fxg5 {[%emt 0:00:34]} 34. Rxg5 {[%emt 0:00:10]} 1-0

[Event "12th Asrian Memorial 2019"]
[Site "Yerevan"]
[Date "2019.06.12"]
[Round "2.4"]
[White "Andriasian, Zaven"]
[Black "Akopov, Roman"]
[Result "1-0"]
[ECO "C50"]
[WhiteElo "2600"]
[BlackElo "2264"]
[Annotator "RC"]
[PlyCount "93"]
[EventDate "2019.06.11"]
[EventType "swiss"]
[EventCountry "ARM"]
[SourceTitle "playchess.com"]
[Source "ChessBase"]
[SourceQuality "1"]
[TimeControl "40/5400+30:1800+30"]

1. e4 {[%emt 0:00:00]} e5 {[%emt 0:00:00]} 2. Nf3 {[%emt 0:00:00]} Nc6 {[%emt 0:00:00]} 3. Bc4 {[%emt 0:00:00]} Bc5 {[%emt 0:00:11]} 4. d3 {[%emt 0:00:29]} Nf6 {[%emt 0:00:28]} 5. Nbd2 {[%emt 0:00:10]} d6 {[%emt 0:01:52]} 6. c3 {[%emt 0:00:33]} a6 {[%emt 0:00:58]} 7. Bb3 {[%emt 0:00:13]} O-O {[%emt 0:01:31]} 8. O-O {[%emt 0:00:06]} Ba7 {[%emt 0:02:07]} 9. h3 {[%emt 0:00:25]} h6 {[%emt 0:02:42]} 10. Re1 {[%emt 0:00:15]} Nh5 {[%emt 0:01:25]} 11. Nf1 {[%emt 0:00:31]} Qf6 {[%emt 0:00:37]} 12. Ne3 {[%emt 0:00:30]} Nf4 {[%emt 0:03:42]} 13. Ng4 {[%emt 0:00:32]} Bxg4 {[%emt 0:20:46]} 14. hxg4 {[%emt 0:00:04]} Ne6 {[%emt 0:01:11]} 15. g3 {[%emt 0:02:52]} Rad8 {[%emt 0:10:14]} 16. Kg2 {[%emt 0:01:51]} Na5 {[%emt 0:02:05]} 17. Bc2 {[%emt 0:00:43]} Nc6 {[%emt 0:04:43]} 18. Qe2 {[%emt 0:01:17]} d5 {[%emt 0:10:37]} 19. Rh1 {[%emt 0:05:07]} dxe4 {[%emt 0:04:33]} 20. dxe4 {[%emt 0:04:09]} Rd7 {[%emt 0:01:17]} 21. Bb3 {[%emt 0:13:39]} Ne7 {[%emt 0:11:16]} 22. g5 {[%emt 0:11:53]} hxg5 {[%emt 0:06:43]} 23. Bxe6 {[%emt 0:02:58]} Qxe6 {[%emt 0:08:12]} 24. Nxg5 {[%emt 0:00:44]} Qg6 {[%emt 0:00:07]} 25. Rh4 {[%emt 0:03:22]} Rfd8 {[%emt 0:00:56]} 26. Be3 {[%emt 0:08:10]} Bxe3 {[%emt 0:01:18]} 27. Rah1 {[%emt 0:00:18]} Kf8 {[%emt 0:00:44]} 28. Qxe3 {[%emt 0:00:48]} Ng8 {[%emt 0:00:52]} 29. Rh8 {[%emt 0:01:15]} Ke7 {[%emt 0:00:26]} 30. Nf3 {[%emt 0:00:44]} Qd6 {[%emt 0:02:45]} 31. R1h5 {[%emt 0:06:24]} f6 {[%emt 0:00:21]} 32. Nh4 {[%emt 0:00:07]} Qb6 {[%emt 0:00:41]} 33. Qe2 {[%emt 0:06:53]} Rd2 {[%emt 0:00:30]} 34. Nf5+ {[%emt 0:00:49]} Kf8 {[%emt 0:00:27]} 35. Rxg8+ {[%emt 0:20:37]} Kxg8 {[%emt 0:00:06]} 36. Qc4+ {[%emt 0:00:06]} R8d5 {[%emt 0:00:06]} 37. Nd4 {[%emt 0:00:21]} Qc5 {[%emt 0:01:05]} 38. Qxc5 {[%emt 0:06:42]} Rxc5 {[%emt 0:00:07]} 39. Nb3 {[%emt 0:00:01]} Rb5 {[%emt 0:01:08]} 40. Nxd2 {[%emt 0:00:00]} Rxb2 {[%emt 0:00:00]} 41. Nc4 {[%emt 0:00:37]} Rc2 {[%emt 0:03:27]} 42. Rh1 {[%emt 0:00:51]} Rxc3 {[%emt 0:00:08]} 43. Ne3 {[%emt 0:00:04]} Kf7 {[%emt 0:03:34]} 44. Nf5 {[%emt 0:00:57]} g6 {[%emt 0:04:07]} 45. Rh7+ {[%emt 0:00:27]} Kf8 {[%emt 0:00:20]} 46. Ne7 {[%emt 0:00:36]} g5 {[%emt 0:06:52]} 47. Nd5 {[%emt 0:00:13]} 1-0

[Event "12th Asrian Memorial 2019"]
[Site "Yerevan"]
[Date "2019.06.12"]
[Round "2.5"]
[White "Ghukasyan, Siranush"]
[Black "Kulaots, Kaido"]
[Result "0-1"]
[ECO "B56"]
[WhiteElo "2255"]
[BlackElo "2574"]
[Annotator "ChessBase"]
[PlyCount "64"]
[EventDate "2019.06.11"]
[EventType "swiss"]
[EventCountry "ARM"]
[SourceTitle "playchess.com"]
[Source "ChessBase"]
[SourceQuality "1"]
[TimeControl "40/5400+30:1800+30"]

1. e4 {[%emt 0:00:00]} c5 {[%emt 0:00:00]} 2. Nf3 {[%emt 0:00:00]} d6 {[%emt 0:00:00]} 3. d4 {[%emt 0:00:00]} cxd4 {[%emt 0:00:03]} 4. Nxd4 {[%emt 0:00:00]} Nf6 {[%emt 0:00:08]} 5. Nc3 {[%emt 0:00:00]} Bd7 {[%emt 0:00:13]} 6. Be2 {[%emt 0:02:20]} g6 {[%emt 0:01:38]} 7. Be3 {[%emt 0:01:37]} Bg7 {[%emt 0:00:30]} 8. f3 {[%emt 0:00:56]} Nc6 {[%emt 0:05:36]} 9. Qd2 {[%emt 0:00:49]} h5 {[%emt 0:04:50]} 10. O-O-O {[%emt 0:02:39]} Rc8 {[%emt 0:00:15]} 11. Kb1 {[%emt 0:01:20]} Ne5 {[%emt 0:07:04]} 12. g3 {[%emt 0:06:28]} a6 {[%emt 0:03:58]} 13. h3 {[%emt 0:02:26]} b5 {[%emt 0:01:32]} 14. a3 {[%emt 0:05:25]} Nc4 {[%emt 0:05:34]} 15. Bxc4 {[%emt 0:00:00]} Rxc4 {[%emt 0:00:36]} 16. g4 {[%emt 0:05:30]} h4 {[%emt 0:20:26]} 17. Qe1 {[%emt 0:10:37]} Qb8 {[%emt 0:02:22]} 18. Na2 {[%emt 0:17:27]} d5 {[%emt 0:14:49]} 19. g5 {[%emt 0:06:08]} Nh5 {[%emt 0:00:13]} 20. exd5 {[%emt 0:00:27]} Ng3 {[%emt 0:00:27]} 21. Rg1 {[%emt 0:00:44]} Nf5 {[%emt 0:03:05]} 22. c3 {[%emt 0:22:32]} a5 {[%emt 0:02:42]} 23. Ka1 {[%emt 0:03:23]} O-O {[%emt 0:04:58]} 24. Nxf5 {[%emt 0:06:03]} Bxf5 {[%emt 0:00:07]} 25. Bd4 {[%emt 0:01:43]} Bxd4 {[%emt 0:05:07]} 26. Rxd4 {[%emt 0:00:09]} Rxd4 {[%emt 0:03:01]} 27. cxd4 {[%emt 0:00:01]} b4 {[%emt 0:00:40]} 28. Qxe7 {[%emt 0:02:57]} Re8 {[%emt 0:00:18]} 29. Qc5 {[%emt 0:00:31]} Qh2 {[%emt 0:00:35]} 30. Rd1 {[%emt 0:02:08]} Re2 {[%emt 0:06:04]} 31. Qxa5 {[%emt 0:00:25]} Rxb2 {[%emt 0:00:40]} 32. Nxb4 {[%emt 0:00:40]} Rb3 {[%emt 0:00:37]} 0-1

[Event "12th Asrian Memorial 2019"]
[Site "Yerevan"]
[Date "2019.06.12"]
[Round "2.6"]
[White "Harutyunian, Tigran K."]
[Black "Mnatsakanian, Arsen"]
[Result "1-0"]
[ECO "A30"]
[WhiteElo "2552"]
[BlackElo "2255"]
[Annotator "RC"]
[PlyCount "65"]
[EventDate "2019.06.11"]
[EventType "swiss"]
[EventCountry "ARM"]
[SourceTitle "playchess.com"]
[Source "ChessBase"]
[SourceQuality "1"]
[TimeControl "40/5400+30:1800+30"]

1. c4 {[%emt 0:08:59]} c5 {[%emt 0:00:00]} 2. Nf3 {[%emt 0:02:41]} Nf6 {[%emt 0:03:23]} 3. Nc3 {[%emt 0:00:54]} g6 {[%emt 0:02:03]} 4. e4 {[%emt 0:00:40]} Nc6 {[%emt 0:00:14]} 5. d4 {[%emt 0:00:18]} cxd4 {[%emt 0:00:05]} 6. Nxd4 {[%emt 0:00:06]} Nxd4 {[%emt 0:00:21]} 7. Qxd4 {[%emt 0:00:08]} Bg7 {[%emt 0:00:24]} 8. Be2 {[%emt 0:04:37]} O-O {[%emt 0:00:23]} 9. O-O {[%emt 0:01:06]} d6 {[%emt 0:00:07]} 10. Qd3 {[%emt 0:00:47]} a5 {[%emt 0:01:43]} 11. Be3 {[%emt 0:02:37]} a4 {[%emt 0:00:11]} 12. Rab1 {[%emt 0:03:57]} Bd7 {[%emt 0:05:10]} 13. Rfd1 {[%emt 0:03:31]} Qa5 {[%emt 0:01:17]} 14. b4 {[%emt 0:02:03]} axb3 {[%emt 0:00:08]} 15. axb3 {[%emt 0:00:08]} Rfc8 {[%emt 0:01:24]} 16. b4 {[%emt 0:04:35]} Qc7 {[%emt 0:00:53]} 17. Nb5 {[%emt 0:06:57]} Bxb5 {[%emt 0:05:57]} 18. cxb5 {[%emt 0:00:08]} Qd8 {[%emt 0:15:34]} 19. h3 {[%emt 0:04:53]} Nd7 {[%emt 0:07:50]} 20. Qd5 {[%emt 0:02:55]} Nb6 {[%emt 0:01:13]} 21. Qxb7 {[%emt 0:03:16]} Na4 {[%emt 0:00:05]} 22. Bd2 {[%emt 0:08:27]} e6 {[%emt 0:13:00]} 23. Rbc1 {[%emt 0:02:56]} Bc3 {[%emt 0:00:34]} 24. b6 {[%emt 0:07:07]} Bxd2 {[%emt 0:02:22]} 25. Rxc8 {[%emt 0:01:08]} Rxc8 {[%emt 0:00:04]} 26. Rxd2 {[%emt 0:00:16]} Rc1+ {[%emt 0:01:02]} 27. Bf1 {[%emt 0:04:26]} Kg7 {[%emt 0:04:06]} 28. Ra2 {[%emt 0:04:43]} Nc3 {[%emt 0:08:12]} 29. Ra7 {[%emt 0:01:48]} Kf6 {[%emt 0:02:10]} 30. Ra8 {[%emt 0:02:20]} Qe7 {[%emt 0:01:13]} 31. Qxe7+ {[%emt 0:00:18]} Kxe7 {[%emt 0:00:06]} 32. b7 {[%emt 0:00:09]} Ne2+ {[%emt 0:00:05]} 33. Kh2 {[%emt 0:00:05]} 1-0

[Event "12th Asrian Memorial 2019"]
[Site "Yerevan"]
[Date "2019.06.12"]
[Round "2.7"]
[White "Sargsyan, Shant"]
[Black "Piliposyan, Robert"]
[Result "1-0"]
[ECO "E17"]
[WhiteElo "2512"]
[BlackElo "2188"]
[Annotator "ChessBase"]
[PlyCount "115"]
[EventDate "2019.06.11"]
[EventType "swiss"]
[EventCountry "ARM"]
[SourceTitle "playchess.com"]
[Source "ChessBase"]
[SourceQuality "1"]
[TimeControl "40/5400+30:1800+30"]

1. d4 {[%emt 0:05:26]} Nf6 {[%emt 0:00:00]} 2. c4 {[%emt 0:00:12]} e6 {[%emt 0:00:00]} 3. Nf3 {[%emt 0:00:17]} b6 {[%emt 0:00:00]} 4. g3 {[%emt 0:00:34]} Bb7 {[%emt 0:00:00]} 5. Bg2 {[%emt 0:00:05]} Be7 {[%emt 0:00:06]} 6. O-O {[%emt 0:00:14]} O-O {[%emt 0:00:06]} 7. Re1 {[%emt 0:00:06]} d5 {[%emt 0:00:06]} 8. cxd5 {[%emt 0:00:31]} exd5 {[%emt 0:00:07]} 9. Nc3 {[%emt 0:00:06]} Nbd7 {[%emt 0:00:20]} 10. Nh4 {[%emt 0:00:35]} Re8 {[%emt 0:06:42]} 11. Nf5 {[%emt 0:00:21]} Bf8 {[%emt 0:02:28]} 12. Bg5 {[%emt 0:00:18]} h6 {[%emt 0:08:18]} 13. Bf4 {[%emt 0:00:24]} c6 {[%emt 0:04:38]} 14. Qc2 {[%emt 0:00:31]} Nh5 {[%emt 0:01:31]} 15. Bd2 {[%emt 0:07:13]} Nhf6 {[%emt 0:03:34]} 16. Rad1 {[%emt 0:02:36]} a5 {[%emt 0:03:56]} 17. h4 {[%emt 0:07:31]} b5 {[%emt 0:11:27]} 18. Bf4 {[%emt 0:02:59]} Nb6 {[%emt 0:02:07]} 19. e4 {[%emt 0:14:44]} Nxe4 {[%emt 0:14:02]} 20. Nxe4 {[%emt 0:00:16]} dxe4 {[%emt 0:00:06]} 21. Bxe4 {[%emt 0:00:31]} Nd5 {[%emt 0:00:55]} 22. Be5 {[%emt 0:00:41]} f6 {[%emt 0:09:41]} 23. Bd6 {[%emt 0:00:22]} Bxd6 {[%emt 0:02:42]} 24. Bxd5+ {[%emt 0:01:33]} cxd5 {[%emt 0:00:03]} 25. Rxe8+ {[%emt 0:00:04]} Qxe8 {[%emt 0:00:02]} 26. Nxd6 {[%emt 0:00:05]} Qd7 {[%emt 0:00:58]} 27. Qc5 {[%emt 0:06:13]} Ra6 {[%emt 0:08:12]} 28. Nxb7 {[%emt 0:16:28]} Qxb7 {[%emt 0:00:14]} 29. Rc1 {[%emt 0:08:04]} Re6 {[%emt 0:12:24]} 30. Kf1 {[%emt 0:07:00]} Re4 {[%emt 0:06:18]} 31. f3 {[%emt 0:02:17]} Re8 {[%emt 0:00:25]} 32. Qd6 {[%emt 0:10:56]} Qf7 {[%emt 0:01:08]} 33. Kf2 {[%emt 0:02:42]} Kh8 {[%emt 0:01:48]} 34. Rc7 {[%emt 0:02:01]} Qg6 {[%emt 0:01:02]} 35. Qc6 {[%emt 0:00:50]} b4 {[%emt 0:00:41]} 36. Qc2 {[%emt 0:00:53]} Qxc2+ {[%emt 0:00:43]} 37. Rxc2 {[%emt 0:00:01]} a4 {[%emt 0:00:17]} 38. Rc5 {[%emt 0:00:59]} b3 {[%emt 0:00:22]} 39. axb3 {[%emt 0:01:10]} Rb8 {[%emt 0:01:01]} 40. bxa4 {[%emt 0:00:00]} Rxb2+ {[%emt 0:00:00]} 41. Ke3 {[%emt 0:02:49]} Rb3+ {[%emt 0:00:18]} 42. Kf4 {[%emt 0:03:40]} Rb4 {[%emt 0:00:25]} 43. Rxd5 {[%emt 0:01:38]} Rxa4 {[%emt 0:00:14]} 44. Rd8+ {[%emt 0:01:51]} Kh7 {[%emt 0:00:07]} 45. h5 {[%emt 0:00:10]} Rb4 {[%emt 0:01:52]} 46. g4 {[%emt 0:02:21]} Ra4 {[%emt 0:01:01]} 47. Ke4 {[%emt 0:01:26]} Rb4 {[%emt 0:00:46]} 48. Ra8 {[%emt 0:01:27]} Rb1 {[%emt 0:00:48]} 49. Kd5 {[%emt 0:06:20]} Rb3 {[%emt 0:00:54]} 50. Kc4 {[%emt 0:01:19]} Rxf3 {[%emt 0:04:47]} 51. d5 {[%emt 0:00:10]} Rf1 {[%emt 0:00:08]} 52. d6 {[%emt 0:00:35]} Rd1 {[%emt 0:00:09]} 53. Kc5 {[%emt 0:00:49]} Rc1+ {[%emt 0:03:05]} 54. Kb6 {[%emt 0:00:35]} Rd1 {[%emt 0:00:43]} 55. Kc7 {[%emt 0:00:18]} Rc1+ {[%emt 0:00:07]} 56. Kd8 {[%emt 0:00:13]} Rd1 {[%emt 0:00:18]} 57. d7 {[%emt 0:00:25]} g6 {[%emt 0:00:05]} 58. Ke7 {[%emt 0:00:15]} 1-0

[Event "12th Asrian Memorial 2019"]
[Site "Yerevan"]
[Date "2019.06.12"]
[Round "2.8"]
[White "Yeritsyan, Hayk"]
[Black "Babujian, Levon"]
[Result "0-1"]
[ECO "D77"]
[WhiteElo "2208"]
[BlackElo "2485"]
[Annotator "ChessBase"]
[PlyCount "130"]
[EventDate "2019.06.11"]
[EventType "swiss"]
[EventCountry "ARM"]
[SourceTitle "playchess.com"]
[Source "ChessBase"]
[SourceQuality "1"]
[TimeControl "40/5400+30:1800+30"]

1. d4 {[%emt 0:00:37]} Nf6 {[%emt 0:00:00]} 2. c4 {[%emt 0:00:49]} g6 {[%emt 0:00:00]} 3. Nf3 {[%emt 0:00:27]} Bg7 {[%emt 0:00:00]} 4. g3 {[%emt 0:00:13]} O-O {[%emt 0:00:01]} 5. Bg2 {[%emt 0:00:09]} d5 {[%emt 0:00:06]} 6. O-O {[%emt 0:00:11]} dxc4 {[%emt 0:00:13]} 7. Na3 {[%emt 0:00:17]} c3 {[%emt 0:00:06]} 8. bxc3 {[%emt 0:00:09]} c5 {[%emt 0:00:03]} 9. Re1 {[%emt 0:00:17]} Ne4 {[%emt 0:01:16]} 10. Qc2 {[%emt 0:01:08]} f5 {[%emt 0:00:16]} 11. Bf4 {[%emt 0:00:23]} Nc6 {[%emt 0:01:20]} 12. Red1 {[%emt 0:12:40]} Qa5 {[%emt 0:04:22]} 13. Qb3+ {[%emt 0:02:18]} Kh8 {[%emt 0:00:44]} 14. Rac1 {[%emt 0:06:55]} Qb6 {[%emt 0:06:26]} 15. Nc4 {[%emt 0:20:46]} Qxb3 {[%emt 0:00:08]} 16. axb3 {[%emt 0:00:06]} b5 {[%emt 0:09:51]} 17. Ncd2 {[%emt 0:01:24]} Bb7 {[%emt 0:03:51]} 18. Nxe4 {[%emt 0:08:08]} fxe4 {[%emt 0:00:29]} 19. Ng5 {[%emt 0:00:18]} cxd4 {[%emt 0:00:27]} 20. Ne6 {[%emt 0:02:13]} Na5 {[%emt 0:12:21]} 21. cxd4 {[%emt 0:08:16]} Rfc8 {[%emt 0:05:20]} 22. Nxg7 {[%emt 0:01:59]} Kxg7 {[%emt 0:00:09]} 23. b4 {[%emt 0:05:59]} Rxc1 {[%emt 0:01:42]} 24. Rxc1 {[%emt 0:00:24]} Nc4 {[%emt 0:00:06]} 25. Rd1 {[%emt 0:02:50]} Bd5 {[%emt 0:00:21]} 26. Ra1 {[%emt 0:09:04]} a5 {[%emt 0:00:30]} 27. bxa5 {[%emt 0:00:10]} Rxa5 {[%emt 0:05:25]} 28. Rxa5 {[%emt 0:00:09]} Nxa5 {[%emt 0:00:03]} 29. Bd2 {[%emt 0:00:07]} Nc6 {[%emt 0:00:14]} 30. e3 {[%emt 0:00:18]} b4 {[%emt 0:00:26]} 31. Bf1 {[%emt 0:00:39]} b3 {[%emt 0:01:06]} 32. Bc3 {[%emt 0:00:06]} Na5 {[%emt 0:06:46]} 33. Bb5 {[%emt 0:01:20]} Nc4 {[%emt 0:05:12]} 34. Bxc4 {[%emt 0:00:53]} Bxc4 {[%emt 0:00:03]} 35. Kg2 {[%emt 0:09:25]} Be2 {[%emt 0:00:13]} 36. f4 {[%emt 0:00:33]} exf3+ {[%emt 0:00:13]} 37. Kf2 {[%emt 0:00:03]} Kf6 {[%emt 0:00:13]} 38. e4 {[%emt 0:00:21]} Ke6 {[%emt 0:00:15]} 39. d5+ {[%emt 0:02:23]} Kd6 {[%emt 0:00:05]} 40. Bd4 {[%emt 0:00:00]} Kc7 {[%emt 0:00:00]} 41. Ke3 {[%emt 0:01:55]} Kb7 {[%emt 0:03:17]} 42. Bb2 {[%emt 0:11:02]} Kb6 {[%emt 0:00:49]} 43. Ba3 {[%emt 0:00:08]} Kb5 {[%emt 0:00:50]} 44. e5 {[%emt 0:00:14]} g5 {[%emt 0:10:49]} 45. d6 {[%emt 0:00:22]} exd6 {[%emt 0:00:17]} 46. exd6 {[%emt 0:00:04]} Kc6 {[%emt 0:00:03]} 47. g4 {[%emt 0:00:34]} Bd1 {[%emt 0:00:26]} 48. h3 {[%emt 0:00:53]} Kd7 {[%emt 0:00:39]} 49. Kf2 {[%emt 0:00:06]} Be2 {[%emt 0:00:06]} 50. Ke3 {[%emt 0:00:15]} Bf1 {[%emt 0:00:45]} 51. h4 {[%emt 0:07:23]} gxh4 {[%emt 0:00:50]} 52. Kxf3 {[%emt 0:00:04]} h6 {[%emt 0:00:33]} 53. Kf2 {[%emt 0:02:07]} Bh3 {[%emt 0:00:30]} 54. Kf3 {[%emt 0:00:17]} Ke6 {[%emt 0:01:02]} 55. Kf4 {[%emt 0:00:21]} Bg2 {[%emt 0:00:21]} 56. Ke3 {[%emt 0:00:18]} Bc6 {[%emt 0:00:29]} 57. Kf2 {[%emt 0:00:42]} Ke5 {[%emt 0:00:51]} 58. Ke3 {[%emt 0:01:32]} h3 {[%emt 0:00:40]} 59. Kf2 {[%emt 0:00:02]} h2 {[%emt 0:00:19]} 60. d7 {[%emt 0:00:03]} Bxd7 {[%emt 0:00:54]} 61. Kg2 {[%emt 0:00:09]} Bxg4 {[%emt 0:00:30]} 62. Kxh2 {[%emt 0:00:03]} Kd4 {[%emt 0:00:19]} 63. Bf8 {[%emt 0:00:08]} Kd3 {[%emt 0:00:17]} 64. Bg7 {[%emt 0:00:04]} Kc2 {[%emt 0:00:08]} 65. Kg3 {[%emt 0:00:02]} Bd1 {[%emt 0:00:21]} 0-1

[Event "12th Asrian Memorial 2019"]
[Site "Yerevan"]
[Date "2019.06.12"]
[Round "2.10"]
[White "Hayrapetyan, Hovik"]
[Black "Basencyan, Mark"]
[Result "1-0"]
[ECO "E68"]
[WhiteElo "2449"]
[BlackElo "2154"]
[Annotator "NA"]
[PlyCount "63"]
[EventDate "2019.06.11"]
[EventType "swiss"]
[EventCountry "ARM"]
[SourceTitle "playchess.com"]
[Source "ChessBase"]
[SourceQuality "1"]
[TimeControl "40/5400+30:1800+30"]

1. d4 {[%emt 0:00:00]} Nf6 {[%emt 0:00:00]} 2. c4 {[%emt 0:00:00]} g6 {[%emt 0:00:00]} 3. Nc3 {[%emt 0:00:04]} Bg7 {[%emt 0:00:05]} 4. Nf3 {[%emt 0:01:06]} O-O {[%emt 0:00:42]} 5. g3 {[%emt 0:06:22]} d6 {[%emt 0:00:18]} 6. Bg2 {[%emt 0:00:05]} Nbd7 {[%emt 0:00:24]} 7. O-O {[%emt 0:00:10]} e5 {[%emt 0:00:39]} 8. e4 {[%emt 0:00:05]} exd4 {[%emt 0:00:41]} 9. Nxd4 {[%emt 0:00:06]} Re8 {[%emt 0:00:25]} 10. h3 {[%emt 0:02:33]} Nc5 {[%emt 0:00:39]} 11. Re1 {[%emt 0:00:07]} a5 {[%emt 0:00:15]} 12. b3 {[%emt 0:05:06]} h6 {[%emt 0:02:30]} 13. Rb1 {[%emt 0:00:59]} c6 {[%emt 0:02:22]} 14. a3 {[%emt 0:36:29]} Nh7 {[%emt 0:11:33]} 15. b4 {[%emt 0:11:50]} axb4 {[%emt 0:01:22]} 16. axb4 {[%emt 0:00:01]} Ne6 {[%emt 0:03:56]} 17. Be3 {[%emt 0:00:49]} Nxd4 {[%emt 0:18:00]} 18. Bxd4 {[%emt 0:00:24]} Be6 {[%emt 0:00:06]} 19. Rc1 {[%emt 0:04:51]} Ra3 {[%emt 0:11:08]} 20. Bxg7 {[%emt 0:03:28]} Kxg7 {[%emt 0:00:22]} 21. Re3 {[%emt 0:00:05]} Ra8 {[%emt 0:24:32]} 22. Ne2 {[%emt 0:03:54]} Ra2 {[%emt 0:07:30]} 23. Nf4 {[%emt 0:05:40]} Nf8 {[%emt 0:04:10]} 24. Bf1 {[%emt 0:01:39]} Re7 {[%emt 0:07:47]} 25. Qd4+ {[%emt 0:08:35]} Kh7 {[%emt 0:00:06]} 26. Rd3 {[%emt 0:00:52]} Rd7 {[%emt 0:00:28]} 27. Rcd1 {[%emt 0:01:29]} Rc2 {[%emt 0:01:48]} 28. Ra3 {[%emt 0:01:56]} c5 {[%emt 0:01:17]} 29. Qa1 {[%emt 0:00:04]} g5 {[%emt 0:00:41]} 30. Nxe6 {[%emt 0:00:28]} Nxe6 {[%emt 0:00:21]} 31. Ra8 {[%emt 0:00:19]} Qe7 {[%emt 0:00:25]} 32. Qh8+ {[%emt 0:00:06]} 1-0